fUST/lending_fUST_20250725
["ID","MTS","AMOUNT","RATE_DAILY","PERIOD"]
[374636299,1753391439371,-460.0,0.00019178,2]
[374636300,1753391439380,-151.0,0.00019178,2]
[374636301,1753391439390,-460.0,0.00019178,2]
[374636302,1753391439400,-460.0,0.00019178,2]
[374636303,1753391439410,-460.0,0.00019178,2]
[374636304,1753391439419,-460.0,0.00019178,2]
[374636305,1753391439429,-333.81598796,0.00019178,2]
[374636306,1753391439439,-460.0,0.00019178,2]
[374636307,1753391439449,-460.0,0.00019178,2]
[374636308,1753391439459,-460.0,0.00019178,2]
[374636309,1753391439468,-460.0,0.00019178,2]
[374636310,1753391439478,-460.0,0.00019178,2]
[374636311,1753391439487,-1464.53,0.00019178,2]
[374636312,1753391439497,-505.06,0.00019178,2]
[374636313,1753391439507,-460.0,0.00019178,2]
[374636314,1753391439518,-460.0,0.00019178,2]
[374636315,1753391439528,-460.0,0.00019178,2]
[374636316,1753391439538,-460.0,0.00019178,2]
[374636317,1753391439548,-460.0,0.00019178,2]
[374636319,1753391439558,-588.61,0.00019178,2]
[374636320,1753391439568,-465.61191937,0.00019178,2]
[374636321,1753391439577,-668.66,0.00019178,2]
[374636322,1753391439588,-151.0,0.00019178,2]
[374636323,1753391439598,-460.0,0.00019178,2]
[374636324,1753391439607,-460.0,0.00019178,2]
[374636325,1753391439617,-338.96929357,0.00019178,2]
[374636326,1753391439628,-460.0,0.00019178,2]
[374636328,1753391439638,-460.0,0.00019178,2]
[374636329,1753391439648,-460.0,0.00019178,2]
[374636331,1753391439657,-460.0,0.00019178,2]
[374636333,1753391439667,-460.0,0.00019178,2]
[374636335,1753391439678,-460.0,0.00019178,2]
[374636337,1753391439699,-517.98984694,0.00019178,2]
[374636339,1753391439710,-460.0,0.00019178,2]
[374636341,1753391439720,-460.0,0.00019178,2]
[374636343,1753391439731,-460.0,0.00019178,2]
[374636345,1753391439740,-460.0,0.00019178,2]
[374636347,1753391439750,-460.0,0.00019178,2]
[374636349,1753391439760,-460.0,0.00019178,2]
[374636351,1753391439771,-500.0,0.00019178,2]
[374636353,1753391439781,-982.0,0.00019178,2]
[374636355,1753391439791,-460.0,0.00019178,2]
[374636357,1753391439800,-460.0,0.00019178,2]
[374636360,1753391439810,-460.0,0.00019178,2]
[374636361,1753391439820,-151.0,0.00019178,2]
[374636364,1753391439830,-171.06597085,0.00019178,2]
[374636366,1753391439839,-500.0,0.00019178,2]
[374636368,1753391439855,-246.22546802,0.00019178,2]
[374636370,1753391439873,-151.0,0.00019178,2]
[374636372,1753391439883,-460.0,0.00019178,2]
[374636374,1753391439893,-460.0,0.00019178,2]
[374636376,1753391439903,-151.0,0.00019178,2]
[374636379,1753391439922,-460.0,0.00019178,2]
[374636381,1753391439934,-460.0,0.00019178,2]
[374636383,1753391439944,-500.0,0.00019178,2]
[374636385,1753391439954,-460.0,0.00019178,2]
[374636387,1753391439965,-460.0,0.00019178,2]
[374636389,1753391439974,-151.0,0.00019178,2]
[374636391,1753391439984,-500.0,0.00019178,2]
[374636393,1753391439994,-814.1,0.00019178,2]
[374636395,1753391440005,-460.0,0.00019178,2]
[374636398,1753391440017,-460.0,0.00019178,2]
[374636400,1753391440027,-233.54690599,0.00019178,2]
[374636402,1753391440036,-460.0,0.00019178,2]
[374636404,1753391440046,-460.0,0.00019178,2]
[374636406,1753391440056,-460.0,0.00019178,2]
[374636408,1753391440066,-460.0,0.00019178,2]
[374636410,1753391440077,-460.0,0.00019178,2]
[374636412,1753391440086,-575.83691297,0.00019178,2]
[374636414,1753391440096,-460.0,0.00019178,2]
[374636416,1753391440106,-500.0,0.00019178,2]
[374636418,1753391440116,-1203.24,0.00019178,2]
[374636420,1753391440126,-460.0,0.00019178,2]
[374636422,1753391440137,-460.0,0.00019178,2]
[374636424,1753391440146,-460.0,0.00019178,2]
[374636426,1753391440156,-460.0,0.00019178,2]
[374636428,1753391440166,-477.87,0.00019178,2]
[374636430,1753391440176,-460.0,0.00019178,2]
[374636432,1753391440186,-151.0,0.00019178,2]
[374636434,1753391440197,-480.4,0.00019178,2]
[374636436,1753391440207,-438.49958656,0.00019178,2]
[374636439,1753391440217,-460.0,0.00019178,2]
[374636441,1753391440227,-460.0,0.00019178,2]
[374636443,1753391440237,-460.0,0.00019178,2]
[374636445,1753391440247,-460.0,0.00019178,2]
[374636447,1753391440256,-460.0,0.00019178,2]
[374636449,1753391440268,-449.35364959,0.00019178,2]
[374636451,1753391440279,-460.0,0.00019178,2]
[374636453,1753391440289,-460.0,0.00019178,2]
[374636455,1753391440299,-460.0,0.00019178,2]
[374636456,1753391440309,-460.0,0.00019178,2]
[374636458,1753391440318,-460.0,0.00019178,2]
[374636459,1753391440332,-582.47,0.00019178,2]
[374636460,1753391440342,-460.0,0.00019178,2]
[374636461,1753391440352,-460.0,0.00019178,2]
[374636462,1753391440361,-511.09,0.00019178,2]
[374636463,1753391440371,-460.0,0.00019178,2]
[374636464,1753391440382,-460.0,0.00019178,2]
[374636465,1753391440393,-460.0,0.00019178,2]
[374636466,1753391440405,-460.0,0.00019178,2]
[374636467,1753391440416,-460.0,0.00019178,2]
[374636468,1753391440426,-460.0,0.00019178,2]
[374636469,1753391440437,-460.0,0.00019178,2]
[374636470,1753391440448,-460.0,0.00019178,2]
[374636471,1753391440459,-460.0,0.00019178,2]
[374636472,1753391440469,-466.00301324,0.00019178,2]
[374636473,1753391440479,-460.0,0.00019178,2]
[374636474,1753391440489,-460.0,0.00019178,2]
[374636475,1753391440499,-751.55,0.00019178,2]
[374636476,1753391440510,-482.96878839,0.00019178,2]
[374636477,1753391440522,-460.0,0.00019178,2]
[374636478,1753391440536,-460.0,0.00019178,2]
[374636479,1753391440546,-460.0,0.00019178,2]
[374636480,1753391440557,-460.0,0.00019178,2]
[374636481,1753391440567,-519.93,0.00019178,2]
[374636482,1753391440578,-460.0,0.00019178,2]
[374636483,1753391440589,-460.0,0.00019178,2]
[374636484,1753391440599,-460.0,0.00019178,2]
[374636485,1753391440739,-455.53656338,0.00019178,2]
[374636486,1753391440750,-460.0,0.00019178,2]
[374636487,1753391440759,-460.0,0.00019178,2]
[374636488,1753391440770,-460.0,0.00019178,2]
[374636489,1753391440780,-460.0,0.00019178,2]
[374636490,1753391440790,-460.0,0.00019178,2]
[374636491,1753391440800,-460.0,0.00019178,2]
[374636492,1753391440810,-460.0,0.00019178,2]
[374636493,1753391440820,-461.12187968,0.00019178,2]
[374636494,1753391440829,-186.56764808,0.00019178,2]
[374636495,1753391440839,-460.0,0.00019178,2]
[374636496,1753391440849,-460.0,0.00019178,2]
[374636497,1753391440861,-460.0,0.00019178,2]
[374636498,1753391440871,-460.0,0.00019178,2]
[374636499,1753391440881,-460.0,0.00019178,2]
[374636500,1753391440890,-460.0,0.00019178,2]
[374636501,1753391440900,-460.0,0.00019178,2]
[374636502,1753391440909,-460.0,0.00019178,2]
[374636503,1753391440919,-460.0,0.00019178,2]
[374636504,1753391440928,-460.0,0.00019178,2]
[374636505,1753391440938,-460.0,0.00019178,2]
[374636506,1753391440950,-800.15,0.00019178,2]
[374636507,1753391440968,-1011.87,0.00019178,2]
[374636508,1753391440978,-460.0,0.00019178,2]
[374636509,1753391440988,-758.05,0.00019178,2]
[374636510,1753391441000,-460.0,0.00019178,2]
[374636511,1753391441009,-1478.25,0.00019178,2]
[374636512,1753391441020,-460.0,0.00019178,2]
[374636513,1753391441030,-445.31481146,0.00019178,2]
[374636514,1753391441040,-889.01,0.00019178,2]
[374636515,1753391441050,-460.0,0.00019178,2]
[374636516,1753391441060,-460.0,0.00019178,2]
[374636517,1753391441069,-460.0,0.00019178,2]
[374636518,1753391441080,-460.0,0.00019178,2]
[374636519,1753391441089,-466.93416376,0.00019178,2]
[374636520,1753391441099,-460.0,0.00019178,2]
[374636521,1753391441108,-2167.5,0.00019178,2]
[374636522,1753391441118,-460.0,0.00019178,2]
[374636523,1753391441127,-460.0,0.00019178,2]
[374636524,1753391441136,-460.0,0.00019178,2]
[374636525,1753391441146,-460.0,0.00019178,2]
[374636526,1753391441155,-460.0,0.00019178,2]
[374636527,1753391441165,-460.0,0.00019178,2]
[374636528,1753391441175,-460.0,0.00019178,2]
[374636529,1753391441185,-3029.47,0.00019178,2]
[374636530,1753391441194,-876.0,0.00019178,2]
[374636531,1753391441204,-460.0,0.00019178,2]
[374636532,1753391441213,-445.93920205,0.00019178,2]
[374636533,1753391441223,-460.0,0.00019178,2]
[374636534,1753391441233,-460.0,0.00019178,2]
[374636535,1753391441242,-276.74411777,0.00019178,2]
[374636536,1753391441252,-733.79,0.00019178,2]
[374636537,1753391441262,-258.98,0.00019178,2]
[374636538,1753391441274,-460.0,0.00019178,2]
[374636539,1753391441283,-259.61985999,0.00019178,2]
[374636540,1753391441293,-460.0,0.00019178,2]
[374636541,1753391441304,-500.0,0.00019178,2]
[374636542,1753391441314,-524.72,0.00019178,2]
[374636543,1753391441323,-962.08,0.00019178,2]
[374636544,1753391441333,-500.0,0.00019178,2]
[374636545,1753391441343,-500.0,0.00019178,2]
[374636546,1753391441353,-478.66,0.00019178,2]
[374636547,1753391441363,-460.0,0.00019178,2]
[374636548,1753391441373,-151.0,0.00019178,2]
[374636549,1753391441383,-2178.62,0.00019178,2]
[374636550,1753391441393,-465.07418091,0.00019178,2]
[374636551,1753391441405,-460.0,0.00019178,2]
[374636552,1753391441414,-460.0,0.00019178,2]
[374636553,1753391441425,-460.0,0.00019178,2]
[374636554,1753391441434,-2278.63,0.00019178,2]
[374636555,1753391441443,-460.0,0.00019178,2]
[374636556,1753391441453,-1990.71,0.00019178,2]
[374636557,1753391441463,-463.80977665,0.00019178,2]
[374636558,1753391441473,-460.0,0.00019178,2]
[374636559,1753391441483,-495.13,0.00019178,2]
[374636560,1753391441493,-529.81335773,0.00019178,2]
[374636561,1753391441503,-937.43,0.00019178,2]
[374636562,1753391441514,-460.0,0.00019178,2]
[374636563,1753391441525,-1939.18,0.00019178,2]
[374636564,1753391441535,-460.0,0.00019178,2]
[374636565,1753391441544,-460.0,0.00019178,2]
[374636566,1753391441554,-460.0,0.00019178,2]
[374636567,1753391441564,-1099.5,0.00019178,2]
[374636568,1753391441573,-461.8206878,0.00019178,2]
[374636569,1753391441583,-460.0,0.00019178,2]
[374636570,1753391441592,-753.09,0.00019178,2]
[374636571,1753391441603,-460.0,0.00019178,2]
[374636572,1753391441613,-1060.93,0.00019178,2]
[374636573,1753391441625,-460.0,0.00019178,2]
[374636574,1753391441635,-460.0,0.00019178,2]
[374636575,1753391441645,-460.0,0.00019178,2]
[374636576,1753391441654,-460.0,0.00019178,2]
[374636577,1753391441664,-460.0,0.00019178,2]
[374636578,1753391441674,-1235.85,0.00019178,2]
[374636579,1753391441684,-1001.77,0.00019178,2]
[374636580,1753391441695,-460.0,0.00019178,2]
[374636581,1753391441708,-460.0,0.00019178,2]
[374636582,1753391441718,-460.0,0.00019178,2]
[374636583,1753391441728,-460.0,0.00019178,2]
[374636584,1753391441738,-460.0,0.00019178,2]
[374636585,1753391441748,-460.0,0.00019178,2]
[374636586,1753391441757,-3240.25,0.00019178,2]
[374636587,1753391441767,-460.0,0.00019178,2]
[374636588,1753391441776,-460.0,0.00019178,2]
[374636589,1753391441786,-460.0,0.00019178,2]
[374636590,1753391441797,-565.89,0.00019178,2]
[374636591,1753391441806,-968.55,0.00019178,2]
[374636592,1753391441816,-460.0,0.00019178,2]
[374636593,1753391441826,-460.0,0.00019178,2]
[374636594,1753391441835,-460.0,0.00019178,2]
[374636595,1753391441845,-460.0,0.00019178,2]
[374636596,1753391441855,-460.0,0.00019178,2]
[374636597,1753391441865,-736.84,0.00019178,2]
[374636598,1753391441875,-460.0,0.00019178,2]
[374636599,1753391441884,-460.0,0.00019178,2]
[374636600,1753391441894,-460.0,0.00019178,2]
[374636601,1753391441904,-704.64,0.00019178,2]
[374636602,1753391441914,-460.0,0.00019178,2]
[374636603,1753391441923,-460.0,0.00019178,2]
[374636604,1753391441932,-460.0,0.00019178,2]
[374636605,1753391441942,-460.0,0.00019178,2]
[374636606,1753391441951,-269.4972036,0.00019178,2]
[374636607,1753391441961,-460.0,0.00019178,2]
[374636608,1753391441971,-460.0,0.00019178,2]
[374636609,1753391441985,-460.0,0.00019178,2]
[374636610,1753391442004,-460.0,0.00019178,2]
[374636611,1753391442014,-669.74,0.00019178,2]
[374636612,1753391442024,-460.73221315,0.00019178,2]
[374636613,1753391442034,-461.10079098,0.00019178,2]
[374636614,1753391442043,-876.65,0.00019178,2]
[374636615,1753391442053,-460.0,0.00019178,2]
[374636616,1753391442063,-530.56027102,0.00019178,2]
[374636617,1753391442072,-820.48,0.00019178,2]
[374636618,1753391442083,-7765.7,0.00019178,2]
[374636619,1753391442092,-655.02,0.00019178,2]
[374636620,1753391442102,-460.0,0.00019178,2]
[374636621,1753391442112,-282.41452481,0.00019178,2]
[374636622,1753391442122,-2253.54,0.00019178,2]
[374636623,1753391442131,-659.75,0.00019178,2]
[374636624,1753391442141,-794.39,0.00019178,2]
[374636625,1753391442150,-587.04,0.00019178,2]
[374636626,1753391442160,-460.0,0.00019178,2]
[374636627,1753391442169,-460.0,0.00019178,2]
[374636628,1753391442179,-460.0,0.00019178,2]
[374636629,1753391442189,-2537.27,0.00019178,2]
[374636630,1753391442198,-460.0,0.00019178,2]
[374636631,1753391442208,-460.0,0.00019178,2]
[374636632,1753391442218,-152.54299812,0.00019178,2]
[374636633,1753391442228,-460.0,0.00019178,2]
[374636634,1753391442238,-460.0,0.00019178,2]
[374636635,1753391442247,-248.63264024,0.00019178,2]
[374636636,1753391442257,-460.0,0.00019178,2]
[374636637,1753391442268,-460.0,0.00019178,2]
[374636638,1753391442278,-460.0,0.00019178,2]
[374636639,1753391442287,-247.82111675,0.00019178,2]
[374636640,1753391442297,-971.59,0.00019178,2]
[374636641,1753391442307,-1259.23,0.00019178,2]
[374636642,1753391442317,-3157.21,0.00019178,2]
[374636643,1753391442327,-151.0,0.00019178,2]
[374636644,1753391442336,-500.0,0.00019178,2]
[374636645,1753391442346,-460.0,0.00019178,2]
[374636646,1753391442356,-460.0,0.00019178,2]
[374636647,1753391442365,-462.57033097,0.00019178,2]
[374636648,1753391442375,-460.0,0.00019178,2]
[374636649,1753391442384,-460.0,0.00019178,2]
[374636650,1753391442394,-460.0,0.00019178,2]
[374636651,1753391442404,-460.0,0.00019178,2]
[374636652,1753391442415,-1109.22,0.00019178,2]
[374636653,1753391442425,-460.0,0.00019178,2]
[374636654,1753391442434,-460.0,0.00019178,2]
[374636655,1753391442538,-460.0,0.00019178,2]
[374636656,1753391442549,-460.0,0.00019178,2]
[374636657,1753391442559,-3057.5,0.00019178,2]
[374636658,1753391442569,-643.19,0.00019178,2]
[374636659,1753391442579,-945.97,0.00019178,2]
[374636660,1753391442589,-460.0,0.00019178,2]
[374636661,1753391442598,-573.72,0.00019178,2]
[374636662,1753391442608,-2681.78,0.00019178,2]
[374636663,1753391442618,-460.0,0.00019178,2]
[374636664,1753391442631,-460.0,0.00019178,2]
[374636665,1753391442642,-2884.63,0.00019178,2]
[374636666,1753391442652,-460.0,0.00019178,2]
[374636667,1753391442662,-326.01602381,0.00019178,2]
[374636668,1753391442674,-460.0,0.00019178,2]
[374636669,1753391442685,-791.02,0.00019178,2]
[374636670,1753391442695,-460.0,0.00019178,2]
[374636671,1753391442706,-460.0,0.00019178,2]
[374636672,1753391442717,-460.0,0.00019178,2]
[374636673,1753391442727,-460.0,0.00019178,2]
[374636674,1753391442737,-460.0,0.00019178,2]
[374636675,1753391442747,-460.0,0.00019178,2]
[374636676,1753391442757,-460.0,0.00019178,2]
[374636677,1753391442768,-460.0,0.00019178,2]
[374636678,1753391442778,-464.58,0.00019178,2]
[374636679,1753391442788,-566.73354706,0.00019178,2]
[374636680,1753391442798,-479.25,0.00019178,2]
[374636681,1753391442808,-460.0,0.00019178,2]
[374636682,1753391442818,-460.0,0.00019178,2]
[374636683,1753391442828,-461.97402793,0.00019178,2]
[374636684,1753391442838,-816.82,0.00019178,2]
[374636685,1753391442848,-469.64,0.00019178,2]
[374636686,1753391442857,-460.0,0.00019178,2]
[374636687,1753391442867,-460.0,0.00019178,2]
[374636688,1753391442877,-564.3,0.00019178,2]
[374636689,1753391442887,-504.98,0.00019178,2]
[374636690,1753391442896,-460.0,0.00019178,2]
[374636691,1753391442906,-460.0,0.00019178,2]
[374636692,1753391442916,-5720.52,0.00019178,2]
[374636693,1753391442925,-460.93566341,0.00019178,2]
[374636694,1753391442935,-463.15771446,0.00019178,2]
[374636695,1753391442944,-1205.1,0.00019178,2]
[374636696,1753391442954,-229.030277,0.00019178,2]
[374636697,1753391442964,-151.0,0.000192,2]
[374636698,1753391442973,-151.0,0.000193,2]
[374636699,1753391442983,-932.44538362,0.00019314,2]
[374636700,1753391442992,-10029.96596981,0.00019358,2]
[374636701,1753391443003,-500.0,0.00019452,2]
[374636702,1753391443015,-151.0,0.00019452,2]
[374636703,1753391443026,-151.0,0.00019452,2]
[374636704,1753391443036,-151.0,0.00019452,2]
[374636705,1753391443045,-500.0,0.00019452,2]
[374636706,1753391443055,-591.10496542,0.00019452,2]
[374636707,1753391443066,-151.0,0.00019452,2]
[374636708,1753391443076,-500.0,0.00019452,2]
[374636709,1753391443086,-982.0,0.00019452,2]
[374636710,1753391443096,-151.0,0.00019452,2]
[374636711,1753391443106,-151.0,0.00019452,2]
[374636712,1753391443116,-151.0,0.00019452,2]
[374636714,1753391443126,-500.0,0.00019452,2]
[374636715,1753391443136,-151.0,0.00019452,2]
[374636716,1753391443146,-525.01323545,0.00019452,2]
[374636717,1753391443155,-151.0,0.00019452,2]
[374636720,1753391443165,-876.0,0.00019452,2]
[374636721,1753391443175,-500.0,0.00019452,2]
[374636722,1753391443185,-550.92705688,0.00019452,2]
[374636723,1753391443195,-500.0,0.00019452,2]
[374636724,1753391443204,-152.79228163,0.00019452,2]
[374636725,1753391443214,-151.0,0.00019452,2]
[374636726,1753391443224,-500.0,0.00019452,2]
[374636727,1753391443235,-460.0,0.00019452,2]
[374636728,1753391443250,-460.0,0.00019452,2]
[374636730,1753391443259,-462.29428087,0.00019452,2]
[374636731,1753391443270,-371.66227126,0.00019452,2]
[374636733,1753391443280,-460.0,0.00019452,2]
[374636735,1753391443289,-460.0,0.00019452,2]
[374636736,1753391443299,-460.0,0.00019452,2]
[374636738,1753391443309,-460.0,0.00019452,2]
[374636740,1753391443320,-460.0,0.00019452,2]
[374636742,1753391443329,-198.91500329,0.00019452,2]
[374636743,1753391443339,-460.0,0.00019452,2]
[374636744,1753391443348,-460.0,0.00019452,2]
[374636745,1753391443358,-460.0,0.00019452,2]
[374636746,1753391443368,-576.43038979,0.00019452,2]
[374636747,1753391443377,-460.0,0.00019452,2]
[374636748,1753391443387,-460.0,0.00019452,2]
[374636749,1753391443397,-493.47,0.00019452,2]
[374636750,1753391443406,-460.0,0.00019452,2]
[374636751,1753391443416,-460.0,0.00019452,2]
[374636752,1753391443426,-460.0,0.00019452,2]
[374636753,1753391443437,-460.0,0.00019452,2]
[374636754,1753391443446,-460.0,0.00019452,2]
[374636755,1753391443456,-460.0,0.00019452,2]
[374636756,1753391443466,-460.0,0.00019452,2]
[374636757,1753391443475,-460.0,0.00019452,2]
[374636758,1753391443485,-460.0,0.00019452,2]
[374636759,1753391443494,-460.0,0.00019452,2]
[374636760,1753391443504,-597.12011188,0.00019452,2]
[374636761,1753391443514,-460.0,0.00019452,2]
[374636762,1753391443526,-460.0,0.00019452,2]
[374636763,1753391443536,-460.0,0.00019452,2]
[374636764,1753391443546,-460.0,0.00019452,2]
[374636765,1753391443555,-460.0,0.00019452,2]
[374636766,1753391443565,-460.0,0.00019452,2]
[374636767,1753391443574,-460.0,0.00019452,2]
[374636768,1753391443584,-460.0,0.00019452,2]
[374636769,1753391443593,-670.24,0.00019452,2]
[374636770,1753391443603,-460.0,0.00019452,2]
[374636771,1753391443612,-460.0,0.00019452,2]
[374636772,1753391443623,-460.0,0.00019452,2]
[374636773,1753391443635,-464.9056258,0.00019452,2]
[374636774,1753391443644,-460.0,0.00019452,2]
[374636775,1753391443653,-460.0,0.00019452,2]
[374636776,1753391443662,-464.46585055,0.00019452,2]
[374636777,1753391443673,-460.0,0.00019452,2]
[374636778,1753391443682,-466.42106355,0.00019452,2]
[374636779,1753391443691,-772.42,0.00019452,2]
[374636780,1753391443706,-492.13,0.00019452,2]
[374636781,1753391443716,-460.0,0.00019452,2]
[374636782,1753391443726,-1114.52,0.00019452,2]
[374636783,1753391443736,-460.0,0.00019452,2]
[374636784,1753391443746,-460.0,0.00019452,2]
[374636785,1753391443755,-460.0,0.00019452,2]
[374636786,1753391443767,-460.0,0.00019452,2]
[374636787,1753391443777,-460.0,0.00019452,2]
[374636788,1753391443787,-460.0,0.00019452,2]
[374636789,1753391443797,-460.0,0.00019452,2]
[374636790,1753391443806,-460.0,0.00019452,2]
[374636791,1753391443817,-460.0,0.00019452,2]
[374636792,1753391443827,-460.0,0.00019452,2]
[374636793,1753391443837,-460.0,0.00019452,2]
[374636794,1753391443846,-1464.53,0.00019452,2]
[374636795,1753391443856,-505.06,0.00019452,2]
[374636796,1753391443866,-460.0,0.00019452,2]
[374636797,1753391443877,-460.0,0.00019452,2]
[374636798,1753391443887,-460.0,0.00019452,2]
[374636799,1753391443896,-460.0,0.00019452,2]
[374636800,1753391443906,-460.0,0.00019452,2]
[374636801,1753391443915,-588.61,0.00019452,2]
[374636802,1753391443924,-668.66,0.00019452,2]
[374636803,1753391443934,-460.0,0.00019452,2]
[374636804,1753391443944,-522.06,0.00019452,2]
[374636805,1753391443954,-460.0,0.00019452,2]
[374636806,1753391443964,-460.0,0.00019452,2]
[374636807,1753391443974,-460.0,0.00019452,2]
[374636808,1753391443983,-460.0,0.00019452,2]
[374636809,1753391443993,-460.0,0.00019452,2]
[374636810,1753391444004,-460.0,0.00019452,2]
[374636811,1753391444014,-460.0,0.00019452,2]
[374636812,1753391444025,-460.0,0.00019452,2]
[374636813,1753391444035,-460.0,0.00019452,2]
[374636814,1753391444045,-460.0,0.00019452,2]
[374636815,1753391444054,-460.0,0.00019452,2]
[374636816,1753391444064,-460.0,0.00019452,2]
[374636817,1753391444073,-460.0,0.00019452,2]
[374636818,1753391444083,-460.0,0.00019452,2]
[374636819,1753391444093,-460.0,0.00019452,2]
[374636820,1753391444184,-460.0,0.00019452,2]
[374636821,1753391444194,-814.1,0.00019452,2]
[374636822,1753391444203,-460.0,0.00019452,2]
[374636823,1753391444213,-460.0,0.00019452,2]
[374636824,1753391444223,-460.0,0.00019452,2]
[374636825,1753391444233,-460.0,0.00019452,2]
[374636826,1753391444243,-460.0,0.00019452,2]
[374636827,1753391444252,-460.0,0.00019452,2]
[374636828,1753391444262,-1203.24,0.00019452,2]
[374636829,1753391444273,-460.0,0.00019452,2]
[374636830,1753391444283,-460.0,0.00019452,2]
[374636831,1753391444293,-460.0,0.00019452,2]
[374636832,1753391444303,-477.87,0.00019452,2]
[374636833,1753391444312,-460.0,0.00019452,2]
[374636834,1753391444322,-480.4,0.00019452,2]
[374636835,1753391444332,-460.0,0.00019452,2]
[374636836,1753391444342,-460.0,0.00019452,2]
[374636837,1753391444355,-460.0,0.00019452,2]
[374636838,1753391444365,-539.85793514,0.00019452,2]
[374636839,1753391444376,-460.0,0.00019452,2]
[374636840,1753391444385,-460.0,0.00019452,2]
[374636841,1753391444395,-460.0,0.00019452,2]
[374636842,1753391444404,-210.26760973,0.00019452,2]
[374636843,1753391444414,-582.47,0.00019452,2]
[374636844,1753391444424,-460.0,0.00019452,2]
[374636845,1753391444434,-460.0,0.00019452,2]
[374636846,1753391444443,-511.09,0.00019452,2]
[374636847,1753391444453,-460.0,0.00019452,2]
[374636848,1753391444463,-460.0,0.00019452,2]
[374636849,1753391444473,-460.0,0.00019452,2]
[374636850,1753391444483,-460.0,0.00019452,2]
[374636851,1753391444493,-460.0,0.00019452,2]
[374636852,1753391444502,-460.0,0.00019452,2]
[374636853,1753391444512,-460.0,0.00019452,2]
[374636854,1753391444523,-751.55,0.00019452,2]
[374636855,1753391444533,-460.0,0.00019452,2]
[374636856,1753391444542,-460.0,0.00019452,2]
[374636857,1753391444551,-519.93,0.00019452,2]
[374636858,1753391444560,-460.0,0.00019452,2]
[374636859,1753391444570,-460.0,0.00019452,2]
[374636860,1753391444579,-460.0,0.00019452,2]
[374636861,1753391444589,-460.0,0.00019452,2]
[374636862,1753391444599,-432.42970882,0.00019452,2]
[374636863,1753391444608,-460.0,0.00019452,2]
[374636864,1753391444618,-460.0,0.00019452,2]
[374636865,1753391444630,-460.0,0.00019452,2]
[374636866,1753391444639,-460.0,0.00019452,2]
[374636867,1753391444649,-460.0,0.00019452,2]
[374636868,1753391444658,-460.0,0.00019452,2]
[374636869,1753391444669,-460.0,0.00019452,2]
[374636870,1753391444679,-460.0,0.00019452,2]
[374636871,1753391444688,-460.0,0.00019452,2]
[374636872,1753391444698,-460.0,0.00019452,2]
[374636873,1753391444709,-460.0,0.00019452,2]
[374636874,1753391444719,-460.0,0.00019452,2]
[374636875,1753391444729,-174.67482996,0.00019452,2]